Cogmind - Beta 16.1 @@@ ROGUE MODE // 2026.02.20 @ 22:54:32 Player: APerTAS Result: Core destroyed Performance ------------- Evolutions (4) 2000 Regions Visited (8) 1600 Robots Destroyed (19) 95 Value Destroyed (732) 732 Prototype IDs (5) 100 Alien Tech Used (0) 0 Bonus (200) 200 TOTAL SCORE: 4727 Bonus ------- Pacifist 200 Cogmind --------- Core Integrity 0/850 Matter 241/300 Energy 100/100 System Corruption 25% Temperature Cool (0) Movement Core (50) Location -6/Lower Caves Parts ------- > --- POWER (1) -------- (None) > --- PROPULSION (4) --- (None) > --- UTILITY (5) ------ (None) > --- WEAPON (5) ------- (None) > --- INVENTORY (5) ---- (None) Peak State ------------ > --- POWER ------------ Light Deuterium Engine > --- PROPULSION ------- Cesium-ion Thruster Improved VTOL Module Improved VTOL Module Xenon Bombardment Thruster > --- UTILITY ---------- Improved Heat Sink Improved Melee Analysis Suite Hacking Suite Improved System Shield Corruption Screen > --- WEAPON ----------- Plasma Rifle Heavy Machine Gun Power Sword Power Sword > --- INVENTORY -------- Light Angular Momentum Engine Power Amplifier Improved Light Armor Plating Advanced Hacking Suite Grenade Launcher [Rating: 59] Favorites ----------- Power Light Deuterium Engine Engine Light Deuterium Engine Power Core Light Nuclear Core Propulsion Improved VTOL Module Flight Unit Improved VTOL Module Utility Hacking Suite Device Improved Heat Sink Processor Corruption Screen Hackware Hacking Suite Protection Improved Propulsion Shielding Weapon Power Sword Energy Gun Plasma Rifle Ballistic Gun Heavy Machine Gun Launcher Grenade Launcher Slashing Weapon Power Sword Build | -11 -10 -9 -9 -8 -7 -6 -6 -6 ------- Run | Yrd Mat Mat Min Mat Fac Fac Low Low Slots Evolved 8 | . . 2 . 2 2 2 . . Power . | . . . . . . . . . Propulsion 2 | . . . . . 1 1 . . Utility 3 | . . . . 1 1 1 . . Weapon 3 | . . 2 . 1 . . . . Parts Attached 29 | . . . . 7 4 13 4 1 Power 3 | . . . . 1 1 . 1 . Engine 2 | . . . . . 1 . 1 . Core 1 | . . . . 1 . . . . Reactor . | . . . . . . . . . Propulsion 7 | . . . . 2 1 2 2 . Treads . | . . . . . . . . . Leg . | . . . . . . . . . Wheel . | . . . . . . . . . Hover . | . . . . . . . . . Flight 7 | . . . . 2 1 2 2 . Utility 11 | . . . . 3 2 5 . 1 Device 4 | . . . . 2 1 1 . . Storage . | . . . . . . . . . Processor 2 | . . . . . . 2 . . Hackware 4 | . . . . 1 . 2 . 1 Protection 1 | . . . . . 1 . . . Artifact . | . . . . . . . . . Weapon 8 | . . . . 1 . 6 1 . Energy Gun 2 | . . . . . . 2 . . Energy Cannon . | . . . . . . . . . Ballistic Gun 2 | . . . . . . 2 . . Ballistic Cannon . | . . . . . . . . . Launcher 1 | . . . . . . . 1 . Special Weapon . | . . . . . . . . . Impact Weapon . | . . . . . . . . . Slashing Weapon 3 | . . . . 1 . 2 . . Piercing Weapon . | . . . . . . . . . Special Melee Weapon . | . . . . . . . . . Unidentified Prototypes 1 | . . . . . . 1 . . Parts Lost 15 | . . . . . 4 3 5 3 Power 2 | . . . . . 1 . 1 . Propulsion 5 | . . . . . . 1 2 2 Utility 5 | . . . . . 2 2 1 . Weapon 3 | . . . . . 1 . 1 1 Highest Loss Streak 4 | . . . . . 4 3 3 3 To Critical Strikes . | . . . . . . . . . Average Backups 3 | . . 1 2 3 4 4 4 2 Power . | . . . . . . . 1 . Propulsion . | . . . . . . . . . Utility 1 | . . . . . 1 1 2 1 Weapon . | . . 1 1 1 1 1 1 . Tool/Special . | . . . . . . . . . Unused Backups 6 | . . . . 1 . 2 1 2 Power 1 | . . . . . . . . 1 Propulsion . | . . . . . . . . . Utility 4 | . . . . . . 2 1 1 Weapon . | . . . . . . . . . Tool/Special 1 | . . . . 1 . . . . Average Slot Usage (%) 50 | . . . . 6 68 80 82 36 Engine 2 | . . . . . . 5 6 3 Core 1 | . . . . . 7 . . . Flight 16 | . . . . 1 23 25 25 14 Device 4 | . . . . 1 15 2 6 3 Processor 4 | . . . . . . 8 11 3 Hackware 8 | . . . . . 7 15 13 7 Protection 2 | . . . . . 6 3 . . Energy Gun 2 | . . . . . . 4 4 . Ballistic Gun 1 | . . . . . . 4 3 . Slashing Weapon 4 | . . . . 2 7 6 9 3 Peak Build Rating 59 | . . . . 21 29 59 59 42 Average Rating 27 | . . . . 2 27 48 50 21 On Entrance 15 | . . . . . 21 20 58 38 Avg Prop Armor Cover (%) . | . . . . . . . . . Naked Turns 499 | . 37 48 90 272 . . . 52 Heaviest Build 21 | . . . . 10 12 21 21 13 Greatest Support 22 | 3 3 3 3 10 15 22 22 18 Greatest Overweight (x) . | . . . . . . . . . Average Overweight (x) . | . . . . . . . . . Largest Inventory Capacity 5 | 5 5 5 5 5 5 5 5 5 Average Capacity 5 | 5 5 5 5 5 5 5 5 5 Most Carried 5 | . 1 2 2 5 5 5 5 4 Average Carried 3 | . . 1 2 3 4 4 4 2 Final Capacity 5 | 5 5 5 5 5 5 5 5 5 Final Carried 5 | . 1 2 2 5 4 5 4 . Class Distribution -------------------- 44% | Hacker-Sprinter 34% | Mutant 17% | Sprinter 3% | Hacker-Gladiator Dominant Class ---------------- Mutant | -10/Materials Mutant | -9/Materials Mutant | -9/Mines Mutant | -8/Materials Sprinter | -7/Factory Hacker-Sprinter | -6/Factory Hacker-Sprinter | -6/Lower Caves Mutant | -6/Lower Caves Resources | -11 -10 -9 -9 -8 -7 -6 -6 -6 ----------- Run | Yrd Mat Mat Min Mat Fac Fac Low Low Matter Collected 487 | 172 . 19 . 74 30 119 73 . Remotely . | . . . . . . . . . Salvage Created 611 | . . 19 . . 189 220 183 . Parts 27 | . . 2 . . 6 11 8 . Haulers Intercepted . | . . . . . . . . . Recyclers Shooed . | . . . . . . . . . Parts Field Recycled . | . . . . . . . . . Retrieved Matter . | . . . . . . . . . Parts Self-Destructed 5 | . . . . . . . 5 . Prevented . | . . . . . . . . . Parts Restored . | . . . . . . . . . Kills | -11 -10 -9 -9 -8 -7 -6 -6 -6 ------- Run | Yrd Mat Mat Min Mat Fac Fac Low Low Combat Hostiles Destroyed 19 | . . 1 . . 5 4 9 . Melee 11 | . . 1 . . 5 4 1 . Guns 5 | . . . . . . . 5 . AOE 3 | . . . . . . . 3 . Classes Destroyed 4 | . . 1 . . 1 2 . . Swarmer 10 | . . 1 . . 2 . 7 . Grunt 5 | . . . . . 3 . 2 . Sentry 2 | . . . . . . 2 . . Programmer 2 | . . . . . . 2 . . Best Kill Streak 4 | . . 1 . . 2 2 4 . Combat Bots Only 4 | . . 1 . . 2 2 4 . Max Kills in Single Turn 2 | . . 1 . . 1 1 2 . Gunslinging 1 | . . . . . . . 1 . Exploded 2 | . . . . . . . 2 . Melee 1 | . . 1 . . 1 1 1 . Uniques/NPCs Destroyed . | . . . . . . . . . Combat | -11 -10 -9 -9 -8 -7 -6 -6 -6 -------- Run | Yrd Mat Mat Min Mat Fac Fac Low Low Hostile Shots Fired 284 | . . 49 . . 79 67 50 39 Missed 137 | . . 15 . . 46 26 23 27 Hits 147 | . . 34 . . 33 41 27 12 Melee 1 | . . . . . 1 . . . Projectile 146 | . . 34 . . 32 41 27 12 Critical Strikes 4 | . . 1 . . 2 . 1 . Damage Taken 2495 | . . 346 7 1 434 377 471 859 Core 1360 | . . 346 7 1 131 95 52 728 Absorbed by Shields . | . . . . . . . . . Redirected to Shielding 56 | . . . . . 40 16 . . Regen/Repaired (Parts) 47 | . . . . . . 47 . . Core Remaining (%) 78 | 100 100 . 11 99 81 . . . Volleys Fired 15 | . . . . . . 1 12 2 Largest 2 | . . . . . . 2 2 1 Hottest 105 | . . . . . . 105 105 30 Shots Fired 25 | . . . . . . 2 21 2 Gun 20 | . . . . . . 2 18 . Cannon . | . . . . . . . . . Launcher 5 | . . . . . . . 3 2 Special . | . . . . . . . . . Kinetic 10 | . . . . . . 1 9 . Thermal 10 | . . . . . . 1 9 . Explosive 5 | . . . . . . . 3 2 Electromagnetic . | . . . . . . . . . Robot Hit Streak 8 | . . . . . . 2 8 . Robot Miss Streak 3 | . . . . . . . 3 . Penetration Max . | . . . . . . . . . Secondary Targets 1 | . . . . . . . 1 . Max Gunslinging Chain 1 | . . . . . . . 1 . Shots Hit Robots 41 | . . . . . 14 13 14 . Core Hits 26 | . . 1 . . 4 6 15 . Critical Kills . | . . . . . . . . . Critical Parts Destroyed . | . . . . . . . . . Critical Strikes 2 | . . . . . . 1 1 . Burn 1 | . . . . . . . 1 . Sever 1 | . . . . . . 1 . . Melee Attacks 43 | . . . . . 20 21 2 . Impact . | . . . . . . . . . Slashing 43 | . . . . . 20 21 2 . Piercing . | . . . . . . . . . Sneak Attacks 2 | . . . . . 2 . . . Combat Hostiles . | . . . . . . . . . Follow-up Attacks . | . . . . . . . . . Damage Inflicted 2164 | . . 14 16 3 636 470 809 216 Guns 326 | . . . . . . 46 280 . Cannons . | . . . . . . . . . Explosions 442 | . . . . . . . 442 . Melee 1147 | . . . . . 636 424 87 . Ramming 249 | . . 14 16 3 . . . 216 Kinetic 129 | . . . . . . 25 104 . Thermal 197 | . . . . . . 21 176 . Explosive 442 | . . . . . . . 442 . Electromagnetic . | . . . . . . . . . Impact . | . . . . . . . . . Slashing 1147 | . . . . . 636 424 87 . Piercing . | . . . . . . . . . Highest Corruption 25 | . . . 2 . . . . 25 Average Corruption 8 | . . . 2 . . . . 14 Corruption Purged . | . . . . . . . . . Corruption Blocked 3 | . . . . . . 3 . . Effects 2 | . . . 1 . . . . 1 Message Errors 1 | . . . . . . . . 1 Matter Fused 1 | . . . 1 . . . . . Overload Shots . | . . . . . . . . . Overflow Damage 81 | . . . . . 55 . 10 16 Projectiles . | . . . . . . . . . Explosions 26 | . . . . . . . 10 16 Melee 55 | . . . . . 55 . . . Knockbacks . | . . . . . . . . . Impact . | . . . . . . . . . Kinetic . | . . . . . . . . . Secondary . | . . . . . . . . . Self-Inflicted Damage 306 | . . 6 7 1 . . . 292 Shots 2 | . . . . . . . . 2 Rammed 7 | . . 2 4 1 . . . . Targets Rammed 7 | . . 2 4 1 . . . . Kicked . | . . . . . . . . . Crushed . | . . . . . . . . . Highest Temperature 71 | . . 5 . . . 48 71 . Average Temperature 26 | . . 5 . . . 26 27 . Received Heat Transfer 438 | . . 114 . . 108 84 102 30 Siege Activations . | . . . . . . . . . Martial Activations . | . . . . . . . . . Shielding Activations . | . . . . . . . . . Robots Disrupted . | . . . . . . . . . Combat Hostiles . | . . . . . . . . . Robots Corrupted . | . . . . . . . . . Combat Hostiles . | . . . . . . . . . Parts Fried . | . . . . . . . . . Impact Corruptions . | . . . . . . . . . Robots Melted . | . . . . . . . . . Combat Hostiles . | . . . . . . . . . Parts Melted 1 | . . . . . . . 1 . Heat Transferred 550 | . . . . . . 50 500 . Parts Sabotaged . | . . . . . . . . . Parts Stolen . | . . . . . . . . . Parts Stripped . | . . . . . . . . . Power Chain Reactions 1 | . . . . . 1 . . . Alert | -11 -10 -9 -9 -8 -7 -6 -6 -6 ------- Run | Yrd Mat Mat Min Mat Fac Fac Low Low Maximum Alert Level . | . . . . . . . . . Low Security (%) 100 | 100 100 100 100 100 100 100 . . Level 1 . | . . . . . . . . . Level 2 . | . . . . . . . . . Level 3 . | . . . . . . . . . Level 4 . | . . . . . . . . . Level 5 . | . . . . . . . . . High Security . | . . . . . . . . . Max Security . | . . . . . . . . . Peak Influence 87 | . . 55 21 30 87 54 . . Initial 21 | . . . 21 . 6 . . . Average 11 | . . 12 7 5 26 9 . . Influence Increases 818 | . . 65 . 82 217 179 260 15 Destroy 0b10 Robot/C 380 | . . 20 . . 100 80 180 . Destroy Leader 70 | . . . . . 10 40 20 . Allied During Kill 4 | . . . . . . 4 . . Successful Hack 97 | . . . . 22 39 36 . . Select Force Hacks 80 | . . 30 . . 50 . . . Disable Machine 15 | . . . . . . 15 . . Destroy Structure 7 | . . . . . 3 4 . . Partial Spotted 15 | . . . . 15 . . . . Lose Combat Pursuer 150 | . . 15 . 45 15 . 60 15 Influence Decreases 776 | . . 10 55 67 232 172 134 106 Entered New Map 73 | . . . 34 . 9 . 4 26 Time Decay 444 | . . 10 21 67 93 123 80 50 Lost Part 141 | . . . . . 40 21 50 30 Purge Threat 118 | . . . . . 90 28 . . Squads Dispatched 12 | . . 2 . 1 5 4 . . Investigation 4 | . . 1 . . 2 1 . . Extermination 3 | . . . . . . 3 . . Reinforcement 5 | . . 1 . 1 3 . . . Assault . | . . . . . . . . . Garrison . | . . . . . . . . . Intercept . | . . . . . . . . . Searches Triggered . | . . . . . . . . . Construction Impeded . | . . . . . . . . . Haulers Reinforced 2 | . . . . . 2 . . . Active Scanning Responses . | . . . . . . . . . Cargo Convoy Interrupts . | . . . . . . . . . Stealth | -11 -10 -9 -9 -8 -7 -6 -6 -6 --------- Run | Yrd Mat Mat Min Mat Fac Fac Low Low Distress Signals 3 | . . . . 3 . . . . Communications Jammed . | . . . . . . . . . Distress Signals . | . . . . . . . . . Times Spotted 57 | . 1 10 . 4 20 7 13 2 Peak Tracking Total 12 | . 1 8 . 3 12 2 8 2 Tactical Retreats 6 | . . 1 . 2 1 . 1 1 Traps | -11 -10 -9 -9 -8 -7 -6 -6 -6 ------- Run | Yrd Mat Mat Min Mat Fac Fac Low Low Traps Triggered 2 | . . . . . . 2 . . Indirectly . | . . . . . . . . . Trap Hack Attempts . | . . . . . . . . . Triggered . | . . . . . . . . . Disarmed 4 | . . . . . . 4 . . Reprogrammed . | . . . . . . . . . Reused . | . . . . . . . . . Traps Extracted . | . . . . . . . . . Installed . | . . . . . . . . . Triggered . | . . . . . . . . . Machines | -11 -10 -9 -9 -8 -7 -6 -6 -6 ---------- Run | Yrd Mat Mat Min Mat Fac Fac Low Low Machines Disabled 1 | . . . . . . 1 . . Max in Single Turn 1 | . . . . . . 1 . . Garrison Access 3 | . . . . 1 1 1 . . Machines Repaired . | . . . . . . . . . Machines Dismantled . | . . . . . . . . . Machines Sabotaged . | . . . . . . . . . Overloaded Fab Kills 1 | . . . . . 1 . . . Hacking | -11 -10 -9 -9 -8 -7 -6 -6 -6 --------- Run | Yrd Mat Mat Min Mat Fac Fac Low Low Machines Accessed 32 | . . 1 . 7 7 16 . 1 Terminals 14 | . . . . 4 4 6 . . Fabricators 6 | . . . . . 2 4 . . Repair Stations 2 | . . . . . . 2 . . Recycling Units 3 | . . 1 . . . 2 . . Scanalyzers 3 | . . . . 2 . 1 . . Garrison Access 3 | . . . . 1 1 1 . . Total Hacks 85 | . . 1 . 14 21 48 . 1 Successful 50 | . . 1 . 10 11 27 . 1 Failed 35 | . . . . 4 10 21 . . Catastrophic 4 | . . . . 1 . 3 . . Database Lockouts . | . . . . . . . . . Manual 35 | . . 1 . 4 9 21 . . Terminals 40 | . . . . 6 12 22 . . Fabricators 16 | . . . . . 6 10 . . Repair Stations 4 | . . . . . . 4 . . Recycling Units 5 | . . 1 . . . 4 . . Scanalyzers 14 | . . . . 7 . 7 . . Garrison Access 5 | . . . . 1 3 1 . . Terminal Hacks 15 | . . . . 2 4 8 . 1 Record 2 | . . . . . . 2 . . Part Schematic 1 | . . . . . 1 . . . Prototype ID Bank 1 | . . . . . . 1 . . Open Door 1 | . . . . . . . . 1 Open DSF 1 | . . . . . 1 . . . Branch Access Points 1 | . . . . . . 1 . . Terminal Index 1 | . . . . . 1 . . . Alert Level 1 | . . . . . . 1 . . Unreport Threat 2 | . . . . . 1 1 . . Disarm Traps 1 | . . . . . . 1 . . Patrol Status 1 | . . . . 1 . . . . Recall Investigation 1 | . . . . . . 1 . . Hauler Manifests 1 | . . . . 1 . . . . Fabricator Hacks 6 | . . . . . 2 4 . . Load Schematic 2 | . . . . . 1 1 . . Build 4 | . . . . . 1 3 . . Repair Station Hacks 4 | . . . . . . 4 . . Scan Component 2 | . . . . . . 2 . . Repair 2 | . . . . . . 2 . . Recycling Unit Hacks 1 | . . . . . . 1 . . Report Inventory 1 | . . . . . . 1 . . Scanalyzer 11 | . . . . 5 . 6 . . Insert Component 3 | . . . . 2 . 1 . . Analyze 3 | . . . . 2 . 1 . . Retrieve Study 5 | . . . . 1 . 4 . . Garrison Access Hacks 3 | . . . . 1 1 1 . . Seal Access 3 | . . . . 1 1 1 . . Unauthorized Hacks 10 | . . 1 . 2 4 3 . . Terminals 8 | . . . . 2 3 3 . . Botnet 7 | . . . . 2 3 2 . . Disrupt 1 | . . . . . . 1 . . Fabricators 1 | . . . . . 1 . . . Overload 1 | . . . . . 1 . . . Repair Stations . | . . . . . . . . . Recycling Units 1 | . . 1 . . . . . . Tunnel 1 | . . 1 . . . . . . Scanalyzers . | . . . . . . . . . Garrison Access . | . . . . . . . . . Data Cores Recovered . | . . . . . . . . . Used . | . . . . . . . . . Hacking Detections 24 | . . . . 5 7 12 . . Full Trace Events 2 | . . . . . 1 1 . . Feedback Events . | . . . . . . . . . Feedback Blocked . | . . . . . . . . . Robot Schematics Acquired . | . . . . . . . . . Robots Built 2 | . . . . . . 2 . . Authchips . | . . . . . . . . . Time 210 | . . . . . . 210 . . Total Robot Build Rating 10 | . . . . . . 10 . . Part Schematics Acquired 3 | . . . . 2 1 . . . Parts Built 2 | . . . . . 1 1 . . Authchips . | . . . . . . . . . Time 111 | . . . . . 58 53 . . Total Part Build Rating 9 | . . . . . 3 6 . . Part Studies Acquired 5 | . . . . 1 . 4 . . Parts Repaired 2 | . . . . . . 2 . . Time 57 | . . . . . . 57 . . Parts Recycled . | . . . . . . . . . Recycled Matter . | . . . . . . . . . Retrieved Matter . | . . . . . . . . . Retrieved Components . | . . . . . . . . . Parts Scanalyzed 3 | . . . . 2 . 1 . . Part Schematics Acquired 2 | . . . . 2 . . . . Parts Damaged . | . . . . . . . . . Bothacking | -11 -10 -9 -9 -8 -7 -6 -6 -6 ------------ Run | Yrd Mat Mat Min Mat Fac Fac Low Low Used RIF Installer . | . . . . . . . . . Robots Hacked . | . . . . . . . . . Non-combat . | . . . . . . . . . Combat . | . . . . . . . . . Robot Hacks Applied . | . . . . . . . . . Relay Couplers Released . | . . . . . . . . . Fabnet Peak Effective % . | . . . . . . . . . Robots Rewired . | . . . . . . . . . Allies Hacked . | . . . . . . . . . Hacks Repelled . | . . . . . . . . . Allies | -11 -10 -9 -9 -8 -7 -6 -6 -6 -------- Run | Yrd Mat Mat Min Mat Fac Fac Low Low Total Allies 3 | . . . . . . 2 . 1 Largest Group 2 | . . . . . . 2 . 1 Highest-Rated Group 165 | . . . . . . 40 . 165 Highest-Rated Ally 165 | . . . . . . 20 . 165 Total Orders . | . . . . . . . . . Ally Attacks . | . . . . . . . . . Total Damage . | . . . . . . . . . Kills . | . . . . . . . . . Allies Corrupted . | . . . . . . . . . Allies Melted . | . . . . . . . . . Intel | -11 -10 -9 -9 -8 -7 -6 -6 -6 ------- Run | Yrd Mat Mat Min Mat Fac Fac Low Low Active Infowar (turns) . | . . . . . . . . . Robot Analysis Total . | . . . . . . . . . Derelict Logs Recovered 4 | . . . 1 . . . 1 2 Drone Launches . | . . . . . . . . . Drone Recoveries . | . . . . . . . . . Exploration | -11 -10 -9 -9 -8 -7 -6 -6 -6 ------------- Run | Yrd Mat Mat Min Mat Fac Fac Low Low Turns Passed 1611 | 10 37 48 90 347 254 541 165 119 Spaces Moved 3318 | 20 72 89 172 684 505 1092 421 263 Core 970 | 20 72 89 172 591 . . . 26 Treads . | . . . . . . . . . Legs . | . . . . . . . . . Wheels . | . . . . . . . . . Hover . | . . . . . . . . . Flight 2348 | . . . . 93 505 1092 421 237 Fastest Speed 26 | 50 50 50 50 32 29 26 26 26 Average Speed 33 | 50 50 50 50 47 29 26 26 28 Slowest Speed 50 | 50 50 50 50 50 29 27 29 50 Overloaded Moves . | . . . . . . . . . Propulsion Burnouts . | . . . . . . . . . Robots Hopped 5 | . . . . . . 4 . 1 Potential Cave-ins . | . . . . . . . . . Cave-ins Triggered . | . . . . . . . . . Exploration Rate (%) 33 | 3 23 15 45 63 17 28 63 41 Regions Visited 8 Branch Regions 3 Pre-discovered Areas 2 | . . 1 . . . . . 1 Known Exits Taken 2 | . . . . . . 1 1 . Unknown Exits Taken 6 | 1 1 1 1 1 1 . . . Scrap Searched 4 | . . . 1 . . . 2 1 Spaces Dug 7 | . . . . . 3 4 . . Terrain Destroyed 27 | . . . . . 3 4 8 12 Melee 7 | . . . . . 3 4 . . Projectile . | . . . . . . . . . AOE 20 | . . . . . . . 8 12 Terrain Rammed 35 | . . . . . . . . 35 Walls Destroyed . | . . . . . . . . . Machines Disabled . | . . . . . . . . . Actions | -11 -10 -9 -9 -8 -7 -6 -6 -6 --------- Run | Yrd Mat Mat Min Mat Fac Fac Low Low Total 3693 | 19 72 91 175 701 577 1303 450 305 Wait 222 | . . . . 3 46 167 6 . Move 3300 | 19 71 88 171 683 504 1083 420 261 Hop 5 | . . . . . . 4 . 1 Pick Up 21 | . 1 1 . 6 2 8 2 1 Fast Attach 17 | . . . . 5 . 10 1 1 Attach 14 | . . . . 2 3 5 3 1 Detach 1 | . . . . . . . 1 . Swap 1 | . . . . . 1 . . . Drop 13 | . . . . 1 1 4 3 4 Fire 15 | . . . . . . 1 12 2 Melee 43 | . . . . . 20 21 2 . Ram 41 | . . 2 4 1 . . . 34 Kick . | . . . . . . . . . Crush . | . . . . . . . . . Escape Stasis . | . . . . . . . . . Rewire . | . . . . . . . . . Trap . | . . . . . . . . . Miscellaneous . | . . . . . . . . . Route ------- -11/Scrapyard -10/Materials -9/Materials -9/Mines -8/Materials (discovered 5 exits: *Fac x3 / *Sto x2) -7/Factory -6/Factory (discovered 2 exits: *Low x2) -6/Lower Caves -6/Lower Caves History --------- Turn | Location | Event 5 | -11/Scrapyard | Discovered new exit (range 13) 11 | -11/Scrapyard | Entered Materials 45 | -10/Materials | Discovered new exit (range 6) 48 | -10/Materials | Entered another Materials area 48 | -9/Materials | Evolved 2 slots: Weapon x2 73 | -9/Materials | Core integrity fell below 50% 85 | -9/Materials | Core integrity fell below 20% 91 | -9/Materials | Discovered new exit (range 11) 96 | -9/Materials | Entered Mines 100 | -9/Mines | Met a Derelict bent on vengeance 103 | -9/Mines | Found a hidden stash of uninstalled traps 138 | -9/Mines | Learned 4 Materials zone layouts 147 | -9/Mines | Found a damaged Exp. Sensor Array with a note attached 178 | -9/Mines | Discovered new exit (range 14) 186 | -9/Mines | Entered Materials 186 | -8/Materials | Evolved 2 slots: Utility x1, Weapon x1 187 | -8/Materials | Identified exit to Storage 305 | -8/Materials | Build established: Mutant 310 | -8/Materials | Discovered new exit (range 12) 357 | -8/Materials | Met 7R-MNS 402 | -8/Materials | Discovered new exit (range 13) 471 | -8/Materials | Discovered exit to Storage (range 6) 523 | -8/Materials | Discovered new exit (range 3) 533 | -8/Materials | Entered Factory 533 | -7/Factory | Evolved 2 slots: Propulsion x1, Utility x1 534 | -7/Factory | Caught up to 7R-MNS 606 | -7/Factory | Fabricated Imp. VTOL Module (x1) 773 | -7/Factory | Discovered new exit (range 13) 787 | -7/Factory | Entered another Factory area 787 | -6/Factory | Evolved 2 slots: Propulsion x1, Utility x1 817 | -6/Factory | Lost 4 parts (1p2u1w) 881 | -6/Factory | Fabricated R-10 Processor (x2) 1104 | -6/Factory | Build established: Hacker-Sprinter 1147 | -6/Factory | Fabricated Adv. Hacking Suite (x1) 1160 | -6/Factory | Lost 3 parts (1n2u) 1209 | -6/Factory | Repaired Lgt. Deuterium Engine+ 1220 | -6/Factory | Discovered new exit (range 8) 1255 | -6/Factory | Identified exit to Lower Caves 1298 | -6/Factory | Repaired Cesium-ion Thruster 1328 | -6/Factory | Entered Lower Caves 1400 | -6/Lower Caves | Spotted B-75 Beast 1447 | -6/Lower Caves | Identified exit to Lower Caves 1486 | -6/Lower Caves | Lost 3 parts (1n1u1w) 1493 | -6/Lower Caves | Entered another Lower Caves area 1497 | -6/Lower Caves | Attracted the attention of an 0b10 checkpoint 1547 | -6/Lower Caves | Learned Factory stockpile data 1556 | -6/Lower Caves | Spotted B-75 Beast 1557 | -6/Lower Caves | Released all parts (9) 1590 | -6/Lower Caves | Core integrity fell below 50% 1591 | -6/Lower Caves | System corruption reached 10% 1605 | -6/Lower Caves | Core integrity fell below 20% 1606 | -6/Lower Caves | Lost 3 parts (2n1w) 1612 | -6/Lower Caves | Core destroyed Last Messages --------------- 01599_ Destabilizing: Core damaged (-17). 01599_ Destabilizing: System corrupted (+1). 01600_ Slammed into Earth. 01600_ Destabilizing: System corrupted (+1). 01601_ Slammed into Earth. 01601_ Destabilizing: System corrupted (+1). A strange signal echoes through the caves. 01602_ Slammed into Earth. 01602_ Destabilizing: Core damaged (-17). 01602_ Destabilizing: System corrupted (+1). 01603_ Slammed into Earth. 01603_ Destabilizing: System corrupted (+2). 01604_ Slammed into Earth. 01604_ Destabilizing: Core damaged (-25). 01605_ Slammed into Earth. 01606_ Destabilizing: Core damaged (-34). 01607_ Slammed into Earth. 01607_ Destabilizing: System corrupted (+2). 01608_ Slammed into Earth. 01612_ Destabilizing: Core damaged (-34). Map ----- +----------------------------------------------------+ | ?????????????????????????????????????????????????? | | ?????????????????????????????????????????????????? | | ?????????????????????????????????????????????????? | | ?????????????????????????????????????????????????? | | ?????????????????????????????????????????????????? | | ?????????????????????????????????????????????????? | | ?????????????????????????????????????????????????? | | ?????????????????????????????????????????????????? | | ?????????????????????????????????????????????????? | | ?????????????????????????????????????????????????? | | ?????????????????????????????????????????????????? | | ????????????????????? ??????????????????????????? | | ???????????????????? ?????????????????????????? | | ????????????????????# ????????????????????????? | | ??????????????????### ????????????????????????? | | ??????????????????? ????????????????????????? | | ??????????????????? ????????????????????????? | | ???????????????????? #???????????????????????? | | ????????????????????? ???????????????????????? | | ????????????????????? ???????????????????????? | | ?????????????????????? ???????????????????????? | | ??????????????????????# #???????????????????????? | | ??????????????????????# ##??????????????????????? | | ??????????????????????#% ;#??????????????????????? | | ??????????????????????# ;#??????????????????????? | | ?????????????????????## @###????????????????????? | | ?????????????? ??????# #????????????????????? | | ?????????????? ??????# #????????????????????? | | ?????????????? ??????# * #????????????????????? | | ?????????????? ?????## #????????????????????? | | ????????????# ????## ### #???????????????????? | | ??????????? ???## #??? ???????????????? | | ##???????? ??## ## ?????????????? | | ??????? #?# #?????????????? | | ??????# #?# %## #?????????????? | | ??????# #?# %;##?# ## #?????????????? | | ?????# #?# !;????# ##?# ##?????????????? | | ????# #?#BB#????? #???###??????????????? | | ???# #?#BB#?????? ????????????????????? | | ?? #?## #?# ####???? #???????????????????? | | ??????# =## ### #????##???????????????????? | | ???????# /*= ## #?????????????????????????? | | ???????# !% ##?????????????????????????? | | ???????## #### ##??????????????????????????? | | ????????##?# #?????????##????????????????? | | ??????????## ###### #???????? ##???????????????? | | ??????????# #???????? #???????????????? | | ??????????# """ #???????? ##??????????????? | | ???????#### """""" #???????# #####?###??????? | | ???????# """ """ #????### ?? ???????? | +----------------------------------------------------+ Best States ------------- Heat Dissipation 51 Energy Generation 19 Energy Capacity 160 Matter Stores 300 Matter Capacity 300 Sight Range 16 Terrain Scan Density 10 Corruption Block 8 Propulsion Shielding 66 Evasion (%) 72 Melee Accuracy 6 Offensive Hacking 21 Defensive Hacking 12 Item Schematics ----------------- Hacking Suite | -8/Materials | Scanalyzed Imp. VTOL Module | -8/Materials | Scanalyzed System Shield | -7/Factory | Hacked Robot Schematics ------------------ None Fabricated ------------ Imp. VTOL Module | x1 | -7/Factory R-10 Processor | x2 | -6/Factory | Preloaded Adv. Hacking Suite | x1 | -6/Factory | Preloaded Repaired ---------- Lgt. Deuterium Engine | 24% | -6/Factory Cesium-ion Thruster | 64% | -6/Factory Studied --------- Grenade Launcher | -8/Materials | Hacked Xenon Bombardment Thruster | -6/Factory | Hacked Power Sword | -6/Factory | Hacked Lgt. Deuterium Engine | -6/Factory | Hacked Lgt. Angular Momentum Engine | -6/Factory | Hacked Alien Tech Used ----------------- None Achievements -------------- None Challenges ------------ None Game ------ Seed CouplerPhasingSuperbattery Manual? 0 Play Time 00:43:48 Cumulative 56.7 hours Start 2026.02.20 @ 22:11:19 End 2026.02.20 @ 22:54:32 Sessions 1 Manual Loads 0 Difficulty Rogue Special Mode None Game No. 168 Rogue 168 Adventurer 0 Explorer 0 Win Type - Total 0 Types 0/0/0/0/0/0/0/0/0/0 Lore% 61 Gallery% 35 Achievement% 33 Wizard Run 0 Options --------- Layout 0 ASCII 0 Keyboard 0 Movement Arrows Keybinds 0 Fullscreen 1 Font 24/Terminus Map View 64x52 Zoom Use 0% Tactical HUD 1 Map Filters NONE Filters NONE Steam 1 RUN: d07873fd-5e57-4929-a8a6-d845c0547c9a